Workbook

Sheet Menu
E26: Empresa: | G26: Sebrae

Sheet Cad
B11: Produto | C11: Preço de Venda | D11: Projeções de vendas mensais | E11: Receita bruta mensal | F11: % de Participação | G11: Matéria - Prima | H11: Comissões (%) | I11: Impostos (%) | J11: Outros gastos | K11: Total custo por produto | M11: Custo Fixo | N11: Valor (R$) | Q11: Comissões (%) | R11: Impostos (%) | S11: Margem de contribuição unitária | T11: IMC (%) | U11: Receita no ponto de equilíbrio | V11: Quantidade a ser vendida | W11: Outros Gastos | X11: Matéria Prima
B12: Camisa | C12: 100 | D12: 50 | E12: =IFERROR(IF(B12="","",C12*D12),"") -> 5000 | F12: =IFERROR(E12/SUM($E$12:$E$511),"") -> 0.1976284585 | G12: 15 | H12: 0.03 | I12: 0.12 | J12: 10 | K12: =G12+C12*(H12+I12)+J12 -> 40 | M12: Pró Labore e salários | N12: 6500 | Q12: =IFERROR(H12*E12,"") -> 150 | R12: =IFERROR(I12*E12,"") -> 600 | S12: =IFERROR(C12-K12,"") -> 60 | T12: =IFERROR(S12/C12,"") -> 0.6 | U12: =IFERROR(V12*C12,"") -> 7870.768173 | V12: =IFERROR(F12*PE!$F$20,"") -> 78.70768173 | W12: =IFERROR(J12*D12,"") -> 500 | X12: =IFERROR(G12*D12,"") -> 750
B13: Calça | C13: 120 | D13: 40 | E13: =IFERROR(IF(B13="","",C13*D13),"") -> 4800 | F13: =IFERROR(E13/SUM($E$12:$E$511),"") -> 0.1897233202 | G13: 28 | H13: 0.03 | I13: 0.12 | J13: 18 | K13: =G13+C13*(H13+I13)+J13 -> 64 | M13: Taxa de propriedade (águal e luz) | N13: 600 | Q13: =IFERROR(H13*E13,"") -> 144 | R13: =IFERROR(I13*E13,"") -> 576 | S13: =IFERROR(C13-K13,"") -> 56 | T13: =IFERROR(S13/C13,"") -> 0.4666666667 | U13: =IFERROR(V13*C13,"") -> 9067.124936 | V13: =IFERROR(F13*PE!$F$20,"") -> 75.55937446 | W13: =IFERROR(J13*D13,"") -> 720 | X13: =IFERROR(G13*D13,"") -> 1120
B14: Camiseta | C14: 70 | D14: 200 | E14: 14000 | F14: 0.5533596838 | G14: 8 | H14: 0.03 | I14: 0.12 | J14: 6 | K14: 24.5 | M14: Telefone e internet | N14: 700 | Q14: 420 | R14: 1680 | S14: 45.5 | T14: 0.65 | U14: 15426.70562 | V14: =IFERROR(F14*PE!$F$20,"") -> 220.3815089 | W14: 1200 | X14: 1600
B15: Pijamas | C15: 50 | D15: 30 | E15: 1500 | F15: 0.05928853755 | G15: 20 | H15: 0.03 | I15: 0.12 | J15: 5 | K15: 32.5 | M15: Aluguel | N15: 2000 | Q15: 45 | R15: 180 | S15: 17.5 | T15: 0.35 | U15: 1180.615226 | V15: =IFERROR(F15*PE!$F$20,"") -> 23.61230452 | W15: 150 | X15: 600
K16: 0 | M16: Marketing | N16: 2000 | S16: 0 | V16: =IFERROR(F16*PE!$F$20,"") ->  | W16: 0 | X16: 0
K17: 0 | M17: Empréstimos | N17: 1350 | S17: 0 | V17: =IFERROR(F17*PE!$F$20,"") ->  | W17: 0 | X17: 0
K18: 0 | M18: Legais e Jurídicos | N18: 980 | S18: 0 | V18: =IFERROR(F18*PE!$F$20,"") ->  | W18: 0 | X18: 0
K19: 0 | M19: Outros Custos | N19: 1900 | S19: 0 | V19: =IFERROR(F19*PE!$F$20,"") ->  | W19: 0 | X19: 0
K20: 0 | S20: 0 | V20: =IFERROR(F20*PE!$F$20,"") ->  | W20: 0 | X20: 0
K21: =G21+C21*(H21+I21)+J21 -> 0 | S21: 0 | V21: =IFERROR(F21*PE!$F$20,"") ->  | W21: 0 | X21: 0
K22: 0 | S22: 0 | V22: =IFERROR(F22*PE!$F$20,"") ->  | W22: 0 | X22: 0
K23: 0 | S23: 0 | V23: =IFERROR(F23*PE!$F$20,"") ->  | W23: 0 | X23: 0
K24: 0 | S24: 0 | V24: =IFERROR(F24*PE!$F$20,"") ->  | W24: 0 | X24: 0
K25: 0 | S25: 0 | V25: =IFERROR(F25*PE!$F$20,"") ->  | W25: 0 | X25: 0
K26: 0 | S26: 0 | V26: =IFERROR(F26*PE!$F$20,"") ->  | W26: 0 | X26: 0
K27: 0 | S27: 0 | V27: =IFERROR(F27*PE!$F$20,"") ->  | W27: 0 | X27: 0
K28: 0 | S28: 0 | V28: =IFERROR(F28*PE!$F$20,"") ->  | W28: 0 | X28: 0
K29: 0 | S29: 0 | V29: =IFERROR(F29*PE!$F$20,"") ->  | W29: 0 | X29: 0
E30: =IFERROR(IF(B30="","",C30*D30),"") ->  | K30: 0 | S30: 0 | V30: =IFERROR(F30*PE!$F$20,"") ->  | W30: 0 | X30: 0
E31: =IFERROR(IF(B31="","",C31*D31),"") ->  | K31: =G31+C31*(H31+I31)+J31 -> 0 | S31: 0 | V31: =IFERROR(F31*PE!$F$20,"") ->  | W31: 0 | X31: 0
K32: 0 | S32: 0 | V32: =IFERROR(F32*PE!$F$20,"") ->  | W32: 0 | X32: 0
K33: 0 | S33: 0 | V33: =IFERROR(F33*PE!$F$20,"") ->  | W33: 0 | X33: 0
K34: 0 | S34: 0 | V34: =IFERROR(F34*PE!$F$20,"") ->  | W34: 0 | X34: 0
K35: 0 | S35: 0 | V35: =IFERROR(F35*PE!$F$20,"") ->  | W35: 0 | X35: 0
K36: 0 | S36: 0 | V36: =IFERROR(F36*PE!$F$20,"") ->  | W36: 0 | X36: 0
K37: 0 | S37: 0 | V37: =IFERROR(F37*PE!$F$20,"") ->  | W37: 0 | X37: 0
K38: 0 | S38: 0 | V38: =IFERROR(F38*PE!$F$20,"") ->  | W38: 0 | X38: 0
K39: 0 | S39: 0 | V39: =IFERROR(F39*PE!$F$20,"") ->  | W39: 0 | X39: 0
K40: 0 | S40: 0 | V40: =IFERROR(F40*PE!$F$20,"") ->  | W40: 0 | X40: 0
K41: 0 | S41: 0 | V41: =IFERROR(F41*PE!$F$20,"") ->  | W41: 0 | X41: 0
K42: 0 | S42: 0 | V42: =IFERROR(F42*PE!$F$20,"") ->  | W42: 0 | X42: 0
K43: 0 | S43: 0 | V43: =IFERROR(F43*PE!$F$20,"") ->  | W43: 0 | X43: 0
K44: 0 | S44: 0 | V44: =IFERROR(F44*PE!$F$20,"") ->  | W44: 0 | X44: 0
K45: 0 | S45: 0 | V45: =IFERROR(F45*PE!$F$20,"") ->  | W45: 0 | X45: 0
K46: 0 | S46: 0 | V46: =IFERROR(F46*PE!$F$20,"") ->  | W46: 0 | X46: 0
K47: 0 | S47: 0 | V47: =IFERROR(F47*PE!$F$20,"") ->  | W47: 0 | X47: 0
K48: 0 | S48: 0 | V48: =IFERROR(F48*PE!$F$20,"") ->  | W48: 0 | X48: 0
K49: 0 | S49: 0 | V49: =IFERROR(F49*PE!$F$20,"") ->  | W49: 0 | X49: 0
K50: 0 | S50: 0 | V50: =IFERROR(F50*PE!$F$20,"") ->  | W50: 0 | X50: 0
K51: 0 | S51: 0 | V51: =IFERROR(F51*PE!$F$20,"") ->  | W51: 0 | X51: 0
K52: 0 | S52: 0 | V52: =IFERROR(F52*PE!$F$20,"") ->  | W52: 0 | X52: 0
K53: 0 | S53: 0 | V53: =IFERROR(F53*PE!$F$20,"") ->  | W53: 0 | X53: 0
K54: 0 | S54: 0 | V54: =IFERROR(F54*PE!$F$20,"") ->  | W54: 0 | X54: 0
K55: 0 | S55: 0 | V55: =IFERROR(F55*PE!$F$20,"") ->  | W55: 0 | X55: 0
K56: 0 | S56: 0 | V56: =IFERROR(F56*PE!$F$20,"") ->  | W56: 0 | X56: 0
K57: 0 | S57: 0 | V57: =IFERROR(F57*PE!$F$20,"") ->  | W57: 0 | X57: 0
K58: 0 | S58: 0 | V58: =IFERROR(F58*PE!$F$20,"") ->  | W58: 0 | X58: 0
K59: 0 | S59: 0 | V59: =IFERROR(F59*PE!$F$20,"") ->  | W59: 0 | X59: 0
K60: 0 | S60: 0 | V60: =IFERROR(F60*PE!$F$20,"") ->  | W60: 0 | X60: 0
K61: 0 | S61: 0 | V61: =IFERROR(F61*PE!$F$20,"") ->  | W61: 0 | X61: 0
K62: 0 | S62: 0 | V62: =IFERROR(F62*PE!$F$20,"") ->  | W62: 0 | X62: 0
K63: 0 | S63: 0 | V63: =IFERROR(F63*PE!$F$20,"") ->  | W63: 0 | X63: 0
K64: 0 | S64: 0 | V64: =IFERROR(F64*PE!$F$20,"") ->  | W64: 0 | X64: 0
K65: 0 | S65: 0 | V65: =IFERROR(F65*PE!$F$20,"") ->  | W65: 0 | X65: 0
K66: 0 | S66: 0 | V66: =IFERROR(F66*PE!$F$20,"") ->  | W66: 0 | X66: 0
K67: 0 | S67: 0 | V67: =IFERROR(F67*PE!$F$20,"") ->  | W67: 0 | X67: 0
K68: 0 | S68: 0 | V68: =IFERROR(F68*PE!$F$20,"") ->  | W68: 0 | X68: 0
K69: 0 | S69: 0 | V69: =IFERROR(F69*PE!$F$20,"") ->  | W69: 0 | X69: 0
K70: 0 | S70: 0 | V70: =IFERROR(F70*PE!$F$20,"") ->  | W70: 0 | X70: 0
K71: 0 | S71: 0 | V71: =IFERROR(F71*PE!$F$20,"") ->  | W71: 0 | X71: 0
K72: 0 | S72: 0 | V72: =IFERROR(F72*PE!$F$20,"") ->  | W72: 0 | X72: 0
K73: 0 | S73: 0 | V73: =IFERROR(F73*PE!$F$20,"") ->  | W73: 0 | X73: 0
K74: 0 | S74: 0 | V74: =IFERROR(F74*PE!$F$20,"") ->  | W74: 0 | X74: 0
K75: 0 | S75: 0 | V75: =IFERROR(F75*PE!$F$20,"") ->  | W75: 0 | X75: 0
K76: 0 | S76: 0 | V76: =IFERROR(F76*PE!$F$20,"") ->  | W76: 0 | X76: 0
F77: =IFERROR(E77/SUM($E$12:$E$511),"") ->  | K77: 0 | Q77: =IFERROR(H77*E77,"") ->  | R77: =IFERROR(I77*E77,"") ->  | S77: =IFERROR(C77-K77,"") -> 0 | T77: =IFERROR(S77/C77,"") ->  | U77: =IFERROR(V77*C77,"") ->  | V77: =IFERROR(F77*PE!$F$20,"") ->  | W77: =IFERROR(J77*D77,"") -> 0 | X77: =IFERROR(G77*D77,"") -> 0
K78: 0 | S78: 0 | V78: =IFERROR(F78*PE!$F$20,"") ->  | W78: 0 | X78: 0
K79: 0 | S79: 0 | V79: =IFERROR(F79*PE!$F$20,"") ->  | W79: 0 | X79: 0
K80: 0 | S80: 0 | V80: =IFERROR(F80*PE!$F$20,"") ->  | W80: 0 | X80: 0
K81: 0 | S81: 0 | V81: =IFERROR(F81*PE!$F$20,"") ->  | W81: 0 | X81: 0
K82: 0 | S82: 0 | V82: =IFERROR(F82*PE!$F$20,"") ->  | W82: 0 | X82: 0
K83: 0 | S83: 0 | V83: =IFERROR(F83*PE!$F$20,"") ->  | W83: 0 | X83: 0
K84: 0 | S84: 0 | V84: =IFERROR(F84*PE!$F$20,"") ->  | W84: 0 | X84: 0
K85: 0 | S85: 0 | V85: =IFERROR(F85*PE!$F$20,"") ->  | W85: 0 | X85: 0
K86: 0 | S86: 0 | V86: =IFERROR(F86*PE!$F$20,"") ->  | W86: 0 | X86: 0
K87: 0 | S87: 0 | V87: =IFERROR(F87*PE!$F$20,"") ->  | W87: 0 | X87: 0
K88: 0 | S88: 0 | V88: =IFERROR(F88*PE!$F$20,"") ->  | W88: 0 | X88: 0
K89: 0 | S89: 0 | V89: =IFERROR(F89*PE!$F$20,"") ->  | W89: 0 | X89: 0
K90: 0 | S90: 0 | V90: =IFERROR(F90*PE!$F$20,"") ->  | W90: 0 | X90: 0
K91: 0 | S91: 0 | V91: =IFERROR(F91*PE!$F$20,"") ->  | W91: 0 | X91: 0
K92: 0 | S92: 0 | V92: =IFERROR(F92*PE!$F$20,"") ->  | W92: 0 | X92: 0
K93: 0 | S93: 0 | V93: =IFERROR(F93*PE!$F$20,"") ->  | W93: 0 | X93: 0
K94: 0 | S94: 0 | V94: =IFERROR(F94*PE!$F$20,"") ->  | W94: 0 | X94: 0
E95: =IFERROR(IF(B95="","",C95*D95),"") ->  | K95: =G95+C95*(H95+I95)+J95 -> 0 | S95: 0 | V95: =IFERROR(F95*PE!$F$20,"") ->  | W95: 0 | X95: 0
K96: 0 | S96: 0 | V96: =IFERROR(F96*PE!$F$20,"") ->  | W96: 0 | X96: 0
K97: 0 | S97: 0 | V97: =IFERROR(F97*PE!$F$20,"") ->  | W97: 0 | X97: 0
K98: 0 | S98: 0 | V98: =IFERROR(F98*PE!$F$20,"") ->  | W98: 0 | X98: 0
K99: 0 | S99: 0 | V99: =IFERROR(F99*PE!$F$20,"") ->  | W99: 0 | X99: 0
K100: 0 | S100: 0 | V100: =IFERROR(F100*PE!$F$20,"") ->  | W100: 0 | X100: 0
K101: 0 | S101: 0 | V101: =IFERROR(F101*PE!$F$20,"") ->  | W101: 0 | X101: 0
K102: 0 | S102: 0 | V102: =IFERROR(F102*PE!$F$20,"") ->  | W102: 0 | X102: 0
K103: 0 | S103: 0 | V103: =IFERROR(F103*PE!$F$20,"") ->  | W103: 0 | X103: 0
K104: 0 | S104: 0 | V104: =IFERROR(F104*PE!$F$20,"") ->  | W104: 0 | X104: 0
K105: 0 | S105: 0 | V105: =IFERROR(F105*PE!$F$20,"") ->  | W105: 0 | X105: 0
K106: 0 | S106: 0 | V106: =IFERROR(F106*PE!$F$20,"") ->  | W106: 0 | X106: 0
K107: 0 | S107: 0 | V107: =IFERROR(F107*PE!$F$20,"") ->  | W107: 0 | X107: 0
K108: 0 | S108: 0 | V108: =IFERROR(F108*PE!$F$20,"") ->  | W108: 0 | X108: 0
K109: 0 | S109: 0 | V109: =IFERROR(F109*PE!$F$20,"") ->  | W109: 0 | X109: 0
K110: 0 | S110: 0 | V110: =IFERROR(F110*PE!$F$20,"") ->  | W110: 0 | X110: 0
K111: 0 | S111: 0 | V111: =IFERROR(F111*PE!$F$20,"") ->  | W111: 0 | X111: 0
K112: 0 | S112: 0 | V112: =IFERROR(F112*PE!$F$20,"") ->  | W112: 0 | X112: 0
K113: 0 | S113: 0 | V113: =IFERROR(F113*PE!$F$20,"") ->  | W113: 0 | X113: 0
K114: 0 | S114: 0 | V114: =IFERROR(F114*PE!$F$20,"") ->  | W114: 0 | X114: 0
K115: 0 | S115: 0 | V115: =IFERROR(F115*PE!$F$20,"") ->  | W115: 0 | X115: 0
K116: 0 | S116: 0 | V116: =IFERROR(F116*PE!$F$20,"") ->  | W116: 0 | X116: 0
K117: 0 | S117: 0 | V117: =IFERROR(F117*PE!$F$20,"") ->  | W117: 0 | X117: 0
K118: 0 | S118: 0 | V118: =IFERROR(F118*PE!$F$20,"") ->  | W118: 0 | X118: 0
K119: 0 | S119: 0 | V119: =IFERROR(F119*PE!$F$20,"") ->  | W119: 0 | X119: 0
K120: 0 | S120: 0 | V120: =IFERROR(F120*PE!$F$20,"") ->  | W120: 0 | X120: 0
K121: 0 | S121: 0 | V121: =IFERROR(F121*PE!$F$20,"") ->  | W121: 0 | X121: 0
K122: 0 | S122: 0 | V122: =IFERROR(F122*PE!$F$20,"") ->  | W122: 0 | X122: 0
K123: 0 | S123: 0 | V123: =IFERROR(F123*PE!$F$20,"") ->  | W123: 0 | X123: 0
K124: 0 | S124: 0 | V124: =IFERROR(F124*PE!$F$20,"") ->  | W124: 0 | X124: 0
K125: 0 | S125: 0 | V125: =IFERROR(F125*PE!$F$20,"") ->  | W125: 0 | X125: 0
K126: 0 | S126: 0 | V126: =IFERROR(F126*PE!$F$20,"") ->  | W126: 0 | X126: 0
K127: 0 | S127: 0 | V127: =IFERROR(F127*PE!$F$20,"") ->  | W127: 0 | X127: 0
K128: 0 | S128: 0 | V128: =IFERROR(F128*PE!$F$20,"") ->  | W128: 0 | X128: 0
K129: 0 | S129: 0 | V129: =IFERROR(F129*PE!$F$20,"") ->  | W129: 0 | X129: 0
K130: 0 | S130: 0 | V130: =IFERROR(F130*PE!$F$20,"") ->  | W130: 0 | X130: 0
K131: 0 | S131: 0 | V131: =IFERROR(F131*PE!$F$20,"") ->  | W131: 0 | X131: 0
K132: 0 | S132: 0 | V132: =IFERROR(F132*PE!$F$20,"") ->  | W132: 0 | X132: 0
K133: 0 | S133: 0 | V133: =IFERROR(F133*PE!$F$20,"") ->  | W133: 0 | X133: 0
K134: 0 | S134: 0 | V134: =IFERROR(F134*PE!$F$20,"") ->  | W134: 0 | X134: 0
K135: 0 | S135: 0 | V135: =IFERROR(F135*PE!$F$20,"") ->  | W135: 0 | X135: 0
K136: 0 | S136: 0 | V136: =IFERROR(F136*PE!$F$20,"") ->  | W136: 0 | X136: 0
K137: 0 | S137: 0 | V137: =IFERROR(F137*PE!$F$20,"") ->  | W137: 0 | X137: 0
K138: 0 | S138: 0 | V138: =IFERROR(F138*PE!$F$20,"") ->  | W138: 0 | X138: 0
K139: 0 | S139: 0 | V139: =IFERROR(F139*PE!$F$20,"") ->  | W139: 0 | X139: 0
K140: 0 | S140: 0 | V140: =IFERROR(F140*PE!$F$20,"") ->  | W140: 0 | X140: 0
F141: =IFERROR(E141/SUM($E$12:$E$511),"") ->  | K141: 0 | Q141: =IFERROR(H141*E141,"") ->  | R141: =IFERROR(I141*E141,"") ->  | S141: =IFERROR(C141-K141,"") -> 0 | T141: =IFERROR(S141/C141,"") ->  | U141: =IFERROR(V141*C141,"") ->  | V141: =IFERROR(F141*PE!$F$20,"") ->  | W141: =IFERROR(J141*D141,"") -> 0 | X141: =IFERROR(G141*D141,"") -> 0
K142: 0 | S142: 0 | V142: =IFERROR(F142*PE!$F$20,"") ->  | W142: 0 | X142: 0
K143: 0 | S143: 0 | V143: =IFERROR(F143*PE!$F$20,"") ->  | W143: 0 | X143: 0
K144: 0 | S144: 0 | V144: =IFERROR(F144*PE!$F$20,"") ->  | W144: 0 | X144: 0
K145: 0 | S145: 0 | V145: =IFERROR(F145*PE!$F$20,"") ->  | W145: 0 | X145: 0
K146: 0 | S146: 0 | V146: =IFERROR(F146*PE!$F$20,"") ->  | W146: 0 | X146: 0
K147: 0 | S147: 0 | V147: =IFERROR(F147*PE!$F$20,"") ->  | W147: 0 | X147: 0
K148: 0 | S148: 0 | V148: =IFERROR(F148*PE!$F$20,"") ->  | W148: 0 | X148: 0
K149: 0 | S149: 0 | V149: =IFERROR(F149*PE!$F$20,"") ->  | W149: 0 | X149: 0
K150: 0 | S150: 0 | V150: =IFERROR(F150*PE!$F$20,"") ->  | W150: 0 | X150: 0
K151: 0 | S151: 0 | V151: =IFERROR(F151*PE!$F$20,"") ->  | W151: 0 | X151: 0
K152: 0 | S152: 0 | V152: =IFERROR(F152*PE!$F$20,"") ->  | W152: 0 | X152: 0
K153: 0 | S153: 0 | V153: =IFERROR(F153*PE!$F$20,"") ->  | W153: 0 | X153: 0
K154: 0 | S154: 0 | V154: =IFERROR(F154*PE!$F$20,"") ->  | W154: 0 | X154: 0
K155: 0 | S155: 0 | V155: =IFERROR(F155*PE!$F$20,"") ->  | W155: 0 | X155: 0
K156: 0 | S156: 0 | V156: =IFERROR(F156*PE!$F$20,"") ->  | W156: 0 | X156: 0
K157: 0 | S157: 0 | V157: =IFERROR(F157*PE!$F$20,"") ->  | W157: 0 | X157: 0
K158: 0 | S158: 0 | V158: =IFERROR(F158*PE!$F$20,"") ->  | W158: 0 | X158: 0
E159: =IFERROR(IF(B159="","",C159*D159),"") ->  | K159: =G159+C159*(H159+I159)+J159 -> 0 | S159: 0 | V159: =IFERROR(F159*PE!$F$20,"") ->  | W159: 0 | X159: 0
K160: 0 | S160: 0 | V160: =IFERROR(F160*PE!$F$20,"") ->  | W160: 0 | X160: 0
K161: 0 | S161: 0 | V161: =IFERROR(F161*PE!$F$20,"") ->  | W161: 0 | X161: 0
K162: 0 | S162: 0 | V162: =IFERROR(F162*PE!$F$20,"") ->  | W162: 0 | X162: 0
K163: 0 | S163: 0 | V163: =IFERROR(F163*PE!$F$20,"") ->  | W163: 0 | X163: 0
K164: 0 | S164: 0 | V164: =IFERROR(F164*PE!$F$20,"") ->  | W164: 0 | X164: 0
K165: 0 | S165: 0 | V165: =IFERROR(F165*PE!$F$20,"") ->  | W165: 0 | X165: 0
K166: 0 | S166: 0 | V166: =IFERROR(F166*PE!$F$20,"") ->  | W166: 0 | X166: 0
K167: 0 | S167: 0 | V167: =IFERROR(F167*PE!$F$20,"") ->  | W167: 0 | X167: 0
K168: 0 | S168: 0 | V168: =IFERROR(F168*PE!$F$20,"") ->  | W168: 0 | X168: 0
K169: 0 | S169: 0 | V169: =IFERROR(F169*PE!$F$20,"") ->  | W169: 0 | X169: 0
K170: 0 | S170: 0 | V170: =IFERROR(F170*PE!$F$20,"") ->  | W170: 0 | X170: 0
K171: 0 | S171: 0 | V171: =IFERROR(F171*PE!$F$20,"") ->  | W171: 0 | X171: 0
K172: 0 | S172: 0 | V172: =IFERROR(F172*PE!$F$20,"") ->  | W172: 0 | X172: 0
K173: 0 | S173: 0 | V173: =IFERROR(F173*PE!$F$20,"") ->  | W173: 0 | X173: 0
K174: 0 | S174: 0 | V174: =IFERROR(F174*PE!$F$20,"") ->  | W174: 0 | X174: 0
K175: 0 | S175: 0 | V175: =IFERROR(F175*PE!$F$20,"") ->  | W175: 0 | X175: 0
K176: 0 | S176: 0 | V176: =IFERROR(F176*PE!$F$20,"") ->  | W176: 0 | X176: 0
K177: 0 | S177: 0 | V177: =IFERROR(F177*PE!$F$20,"") ->  | W177: 0 | X177: 0
K178: 0 | S178: 0 | V178: =IFERROR(F178*PE!$F$20,"") ->  | W178: 0 | X178: 0
K179: 0 | S179: 0 | V179: =IFERROR(F179*PE!$F$20,"") ->  | W179: 0 | X179: 0
K180: 0 | S180: 0 | V180: =IFERROR(F180*PE!$F$20,"") ->  | W180: 0 | X180: 0
K181: 0 | S181: 0 | V181: =IFERROR(F181*PE!$F$20,"") ->  | W181: 0 | X181: 0
K182: 0 | S182: 0 | V182: =IFERROR(F182*PE!$F$20,"") ->  | W182: 0 | X182: 0
K183: 0 | S183: 0 | V183: =IFERROR(F183*PE!$F$20,"") ->  | W183: 0 | X183: 0
K184: 0 | S184: 0 | V184: =IFERROR(F184*PE!$F$20,"") ->  | W184: 0 | X184: 0
K185: 0 | S185: 0 | V185: =IFERROR(F185*PE!$F$20,"") ->  | W185: 0 | X185: 0
K186: 0 | S186: 0 | V186: =IFERROR(F186*PE!$F$20,"") ->  | W186: 0 | X186: 0
K187: 0 | S187: 0 | V187: =IFERROR(F187*PE!$F$20,"") ->  | W187: 0 | X187: 0
K188: 0 | S188: 0 | V188: =IFERROR(F188*PE!$F$20,"") ->  | W188: 0 | X188: 0
K189: 0 | S189: 0 | V189: =IFERROR(F189*PE!$F$20,"") ->  | W189: 0 | X189: 0
K190: 0 | S190: 0 | V190: =IFERROR(F190*PE!$F$20,"") ->  | W190: 0 | X190: 0
K191: 0 | S191: 0 | V191: =IFERROR(F191*PE!$F$20,"") ->  | W191: 0 | X191: 0
K192: 0 | S192: 0 | V192: =IFERROR(F192*PE!$F$20,"") ->  | W192: 0 | X192: 0
K193: 0 | S193: 0 | V193: =IFERROR(F193*PE!$F$20,"") ->  | W193: 0 | X193: 0
K194: 0 | S194: 0 | V194: =IFERROR(F194*PE!$F$20,"") ->  | W194: 0 | X194: 0
K195: 0 | S195: 0 | V195: =IFERROR(F195*PE!$F$20,"") ->  | W195: 0 | X195: 0
K196: 0 | S196: 0 | V196: =IFERROR(F196*PE!$F$20,"") ->  | W196: 0 | X196: 0
K197: 0 | S197: 0 | V197: =IFERROR(F197*PE!$F$20,"") ->  | W197: 0 | X197: 0
K198: 0 | S198: 0 | V198: =IFERROR(F198*PE!$F$20,"") ->  | W198: 0 | X198: 0
K199: 0 | S199: 0 | V199: =IFERROR(F199*PE!$F$20,"") ->  | W199: 0 | X199: 0
K200: 0 | S200: 0 | V200: =IFERROR(F200*PE!$F$20,"") ->  | W200: 0 | X200: 0
K201: 0 | S201: 0 | V201: =IFERROR(F201*PE!$F$20,"") ->  | W201: 0 | X201: 0
K202: 0 | S202: 0 | V202: =IFERROR(F202*PE!$F$20,"") ->  | W202: 0 | X202: 0
K203: 0 | S203: 0 | V203: =IFERROR(F203*PE!$F$20,"") ->  | W203: 0 | X203: 0
K204: 0 | S204: 0 | V204: =IFERROR(F204*PE!$F$20,"") ->  | W204: 0 | X204: 0
F205: =IFERROR(E205/SUM($E$12:$E$511),"") ->  | K205: 0 | Q205: =IFERROR(H205*E205,"") ->  | R205: =IFERROR(I205*E205,"") ->  | S205: =IFERROR(C205-K205,"") -> 0 | T205: =IFERROR(S205/C205,"") ->  | U205: =IFERROR(V205*C205,"") ->  | V205: =IFERROR(F205*PE!$F$20,"") ->  | W205: =IFERROR(J205*D205,"") -> 0 | X205: =IFERROR(G205*D205,"") -> 0
K206: 0 | S206: 0 | V206: =IFERROR(F206*PE!$F$20,"") ->  | W206: 0 | X206: 0
K207: 0 | S207: 0 | V207: =IFERROR(F207*PE!$F$20,"") ->  | W207: 0 | X207: 0
K208: 0 | S208: 0 | V208: =IFERROR(F208*PE!$F$20,"") ->  | W208: 0 | X208: 0
K209: 0 | S209: 0 | V209: =IFERROR(F209*PE!$F$20,"") ->  | W209: 0 | X209: 0
K210: 0 | S210: 0 | V210: =IFERROR(F210*PE!$F$20,"") ->  | W210: 0 | X210: 0
... 301 more rows

Sheet PE
B11: Descrição | C11: Valor (R$) | E11: Descrição | F11: Valor (R$) | H11: Selecione o seu produto: | I11: Calça
B12: Preço de venda médio dos seus produtos | C12: =IFERROR(AVERAGEIF(Cad!C12:C511,">0"),"") -> 85 | E12: Qual o valor total dos seus custos fixos? | F12: =SUM(Cad!N12:N51) -> 16030 | H12: ="Receita do(a) "&I11&" no Ponto de Equilíbrio" -> Receita do(a) Calça no Ponto de Equilíbrio | I12: =IFERROR(VLOOKUP(I11,Cad!$B$12:$X$511,20,0),"") -> 9067.124936
H14: Unidades | I14: =IFERROR(VLOOKUP(I11,Cad!$B$12:$X$511,21,0),"") -> 75.55937446
B15: Margem de contribuição média dos seus produtos | C15: =IFERROR(AVERAGEIF(Cad!K12:K511,">0"),"") -> 40.25
E16: Qual deve ser o faturamento para não ter prejuízo? | F16: =IFERROR(F12/(C15/C12),"") -> 33852.17391 | H16: Total de despesas diretas | I16: =IFERROR(VLOOKUP(I11,Cad!$B$12:$X$511,10,0)*I14,"") -> 4835.799966
B18: Custos diretos totais | C18: =SUM(Cad!K12:K511) -> 161 | H18: MC unitária | I18: =IFERROR(VLOOKUP(I11,Cad!$B$12:$X$511,18,0),"") -> 56
E20: Quantos produtos você precisa vender para não ter prejuízo? | F20: =IFERROR(F16/C12,"") -> 398.2608696 | H20: MC ponderada | I20: =IFERROR(VLOOKUP(I11,Cad!$B$12:$X$511,5,0)*I18,"") -> 10.62450593
B21: Custos diretos médio por produto | C21: =IFERROR(AVERAGEIF(Cad!K12:K511,">0"),"") -> 40.25

Sheet AC
B10: Empresa | C10: Diferencial | D10: Produto | E10: Preço Concorrente | F10: Seu Preço | G10: Diferença | H10: Orientação
B11: Camisaria XYZ Ltda | C11: Preço | D11: Camisa | E11: 110 | F11: =IFERROR(IF(D11="","",VLOOKUP(D11,Cad!$B$12:$C$511,2,0)),"") -> 100 | G11: =IF(F11="","",F11-E11) -> -10 | H11: =IFERROR(IF(G11<0,"Seu preço está "&-I11*100&" % mais barato. Vale aumentar?",IF(G11>0,"Seu preço está "&I11*100&"% mais caro. Diminuir preço?","Seu preço está igual ao de mercado. Manter o preço?")),"") -> Seu preço está 9 % mais barato. Vale aumentar? | I11: =IFERROR(ROUND(F11/E11-1,2),"") -> -0.09
B12: Malharia XYZ Ltda | C12: Qualidade | D12: Malha | E12: 110 | F12: =IFERROR(IF(D12="","",VLOOKUP(D12,Cad!$B$12:$C$511,2,0)),"") ->  | G12: =IF(F12="","",F12-E12) ->  | H12: =IFERROR(IF(G12<0,"Seu preço está "&-I12*100&" % mais barato. Vale aumentar?",IF(G12>0,"Seu preço está "&I12*100&"% mais caro. Diminuir preço?","Seu preço está igual ao de mercado. Manter o preço?")),"") ->  | I12: =IFERROR(ROUND(F12/E12-1,2),"") -> 
B13: Empresa de roupas Ltda | C13: Localização Geográfica | D13: Calça | E13: 150 | F13: =IFERROR(IF(D13="","",VLOOKUP(D13,Cad!$B$12:$C$511,2,0)),"") -> 120 | G13: -30 | H13: Seu preço está 20 % mais barato. Vale aumentar? | I13: -0.2
B14: Roupas femininas Ltda | C14: Preço | D14: Saia | E14: 98 | F14: =IFERROR(IF(D14="","",VLOOKUP(D14,Cad!$B$12:$C$511,2,0)),"") -> 
B15: Moda Jeans Ltda | C15: Localização Geográfica | D15: Jeans | E15: 140 | F15: =IFERROR(IF(D15="","",VLOOKUP(D15,Cad!$B$12:$C$511,2,0)),"") -> 
B16: Camisaria Colombo | C16: Preço | D16: Cueca | E16: 16 | F16: =IFERROR(IF(D16="","",VLOOKUP(D16,Cad!$B$12:$C$511,2,0)),"") -> 
F17: =IFERROR(IF(D17="","",VLOOKUP(D17,Cad!$B$12:$C$511,2,0)),"") ->  | I17: =IFERROR(ROUND(F17/E17-1,2),"") -> 
F18: =IFERROR(IF(D18="","",VLOOKUP(D18,Cad!$B$12:$C$511,2,0)),"") ->  | I18: =IFERROR(ROUND(F18/E18-1,2),"") -> 
F19: =IFERROR(IF(D19="","",VLOOKUP(D19,Cad!$B$12:$C$511,2,0)),"") -> 
F20: =IFERROR(IF(D20="","",VLOOKUP(D20,Cad!$B$12:$C$511,2,0)),"") -> 
F21: =IFERROR(IF(D21="","",VLOOKUP(D21,Cad!$B$12:$C$511,2,0)),"") ->  | G21: =IF(F21="","",F21-E21) -> 
F22: =IFERROR(IF(D22="","",VLOOKUP(D22,Cad!$B$12:$C$511,2,0)),"") -> 
F23: =IFERROR(IF(D23="","",VLOOKUP(D23,Cad!$B$12:$C$511,2,0)),"") -> 
F24: =IFERROR(IF(D24="","",VLOOKUP(D24,Cad!$B$12:$C$511,2,0)),"") ->  | G24: =IF(F24="","",F24-E24) -> 
F25: =IFERROR(IF(D25="","",VLOOKUP(D25,Cad!$B$12:$C$511,2,0)),"") -> 
F26: =IFERROR(IF(D26="","",VLOOKUP(D26,Cad!$B$12:$C$511,2,0)),"") -> 
F27: =IFERROR(IF(D27="","",VLOOKUP(D27,Cad!$B$12:$C$511,2,0)),"") -> 
F28: =IFERROR(IF(D28="","",VLOOKUP(D28,Cad!$B$12:$C$511,2,0)),"") -> 
F29: =IFERROR(IF(D29="","",VLOOKUP(D29,Cad!$B$12:$C$511,2,0)),"") -> 
F30: =IFERROR(IF(D30="","",VLOOKUP(D30,Cad!$B$12:$C$511,2,0)),"") -> 
F31: =IFERROR(IF(D31="","",VLOOKUP(D31,Cad!$B$12:$C$511,2,0)),"") -> 
F32: =IFERROR(IF(D32="","",VLOOKUP(D32,Cad!$B$12:$C$511,2,0)),"") -> 
F33: =IFERROR(IF(D33="","",VLOOKUP(D33,Cad!$B$12:$C$511,2,0)),"") -> 
F34: =IFERROR(IF(D34="","",VLOOKUP(D34,Cad!$B$12:$C$511,2,0)),"") -> 
F35: =IFERROR(IF(D35="","",VLOOKUP(D35,Cad!$B$12:$C$511,2,0)),"") -> 
F36: =IFERROR(IF(D36="","",VLOOKUP(D36,Cad!$B$12:$C$511,2,0)),"") -> 
F37: =IFERROR(IF(D37="","",VLOOKUP(D37,Cad!$B$12:$C$511,2,0)),"") -> 
F38: =IFERROR(IF(D38="","",VLOOKUP(D38,Cad!$B$12:$C$511,2,0)),"") -> 
F39: =IFERROR(IF(D39="","",VLOOKUP(D39,Cad!$B$12:$C$511,2,0)),"") -> 
F40: =IFERROR(IF(D40="","",VLOOKUP(D40,Cad!$B$12:$C$511,2,0)),"") -> 
F41: =IFERROR(IF(D41="","",VLOOKUP(D41,Cad!$B$12:$C$511,2,0)),"") -> 
F42: =IFERROR(IF(D42="","",VLOOKUP(D42,Cad!$B$12:$C$511,2,0)),"") -> 
F43: =IFERROR(IF(D43="","",VLOOKUP(D43,Cad!$B$12:$C$511,2,0)),"") -> 
F44: =IFERROR(IF(D44="","",VLOOKUP(D44,Cad!$B$12:$C$511,2,0)),"") -> 
F45: =IFERROR(IF(D45="","",VLOOKUP(D45,Cad!$B$12:$C$511,2,0)),"") -> 
F46: =IFERROR(IF(D46="","",VLOOKUP(D46,Cad!$B$12:$C$511,2,0)),"") -> 
F47: =IFERROR(IF(D47="","",VLOOKUP(D47,Cad!$B$12:$C$511,2,0)),"") -> 
F48: =IFERROR(IF(D48="","",VLOOKUP(D48,Cad!$B$12:$C$511,2,0)),"") -> 
F49: =IFERROR(IF(D49="","",VLOOKUP(D49,Cad!$B$12:$C$511,2,0)),"") -> 
F50: =IFERROR(IF(D50="","",VLOOKUP(D50,Cad!$B$12:$C$511,2,0)),"") -> 
F51: =IFERROR(IF(D51="","",VLOOKUP(D51,Cad!$B$12:$C$511,2,0)),"") -> 
F52: =IFERROR(IF(D52="","",VLOOKUP(D52,Cad!$B$12:$C$511,2,0)),"") ->  | H52: Seu preço está 0% mais caro. Diminuir preço?
F53: =IFERROR(IF(D53="","",VLOOKUP(D53,Cad!$B$12:$C$511,2,0)),"") ->  | H53: Seu preço está 0% mais caro. Diminuir preço?
F54: =IFERROR(IF(D54="","",VLOOKUP(D54,Cad!$B$12:$C$511,2,0)),"") ->  | H54: Seu preço está 0% mais caro. Diminuir preço?
F55: =IFERROR(IF(D55="","",VLOOKUP(D55,Cad!$B$12:$C$511,2,0)),"") ->  | H55: Seu preço está 0% mais caro. Diminuir preço?
F56: =IFERROR(IF(D56="","",VLOOKUP(D56,Cad!$B$12:$C$511,2,0)),"") ->  | H56: Seu preço está 0% mais caro. Diminuir preço?
F57: =IFERROR(IF(D57="","",VLOOKUP(D57,Cad!$B$12:$C$511,2,0)),"") ->  | H57: Seu preço está 0% mais caro. Diminuir preço?
F58: =IFERROR(IF(D58="","",VLOOKUP(D58,Cad!$B$12:$C$511,2,0)),"") ->  | H58: Seu preço está 0% mais caro. Diminuir preço?
F59: =IFERROR(IF(D59="","",VLOOKUP(D59,Cad!$B$12:$C$511,2,0)),"") ->  | H59: Seu preço está 0% mais caro. Diminuir preço?
F60: =IFERROR(IF(D60="","",VLOOKUP(D60,Cad!$B$12:$C$511,2,0)),"") ->  | H60: Seu preço está 0% mais caro. Diminuir preço?

Sheet RC
B10: Resumo dos Custos Diretos | G10: Top 5 Custos Fixos
B11: Matéria - prima | D11: =IFERROR(SUM(Cad!G12:G511),"") -> 71 | G11: =IFERROR(IF(I11=I10,INDEX(OFFSET(Cad!$M$12:$M$51,MATCH(I10,Cad!$N$12:$N$51,0),0),MATCH(I11,OFFSET(Cad!$N$12:$N$51,MATCH(I11,Cad!$N$12:$N$51,0),0),0),1),INDEX(Cad!$M$12:$M$51,MATCH(I11,Cad!$N$12:$N$51,0),1)),"" ) -> Pró Labore e salários | I11: =IFERROR(LARGE(Cad!N12:N51,1),"") -> 6500
B12: Impostos | D12: =IFERROR(SUM(Cad!I12:I511),"") -> 0.48 | G12: =IFERROR(IF(I12=I11,INDEX(OFFSET(Cad!$M$12:$M$51,MATCH(I11,Cad!$N$12:$N$51,0),0),MATCH(I12,OFFSET(Cad!$N$12:$N$51,MATCH(I12,Cad!$N$12:$N$51,0),0),0),1),INDEX(Cad!$M$12:$M$51,MATCH(I12,Cad!$N$12:$N$51,0),1)),"" ) -> Aluguel | I12: =IFERROR(LARGE(Cad!N12:N51,2),"") -> 2000
B13: Comissões | D13: =IFERROR(SUM(Cad!H12:H511),"") -> 0.12 | G13: =IFERROR(IF(I13=I12,INDEX(OFFSET(Cad!$M$12:$M$51,MATCH(I12,Cad!$N$12:$N$51,0),0),MATCH(I13,OFFSET(Cad!$N$12:$N$51,MATCH(I13,Cad!$N$12:$N$51,0),0),0),1),INDEX(Cad!$M$12:$M$51,MATCH(I13,Cad!$N$12:$N$51,0),1)),"" ) -> Marketing | I13: =IFERROR(LARGE(Cad!N12:N51,3),"") -> 2000
B14: Outros gastos | D14: =IFERROR(SUM(Cad!J12:J511),"") -> 39 | G14: =IFERROR(IF(I14=I13,INDEX(OFFSET(Cad!$M$12:$M$51,MATCH(I13,Cad!$N$12:$N$51,0),0),MATCH(I14,OFFSET(Cad!$N$12:$N$51,MATCH(I14,Cad!$N$12:$N$51,0),0),0),1),INDEX(Cad!$M$12:$M$51,MATCH(I14,Cad!$N$12:$N$51,0),1)),"" ) -> Outros Custos | I14: =IFERROR(LARGE(Cad!N12:N51,4),"") -> 1900
B15: Total dos gastos | D15: =SUM(D11:E14) -> 110.6 | G15: =IFERROR(IF(I15=I14,INDEX(OFFSET(Cad!$M$12:$M$51,MATCH(I14,Cad!$N$12:$N$51,0),0),MATCH(I15,OFFSET(Cad!$N$12:$N$51,MATCH(I15,Cad!$N$12:$N$51,0),0),0),1),INDEX(Cad!$M$12:$M$51,MATCH(I15,Cad!$N$12:$N$51,0),1)),"" ) -> Empréstimos | I15: =IFERROR(LARGE(Cad!N12:N51,5),"") -> 1350
G16: Total dos custos fixos | I16: =SUM(Cad!N12:N51) -> 16030
B18: Análise da concorrência (máximo de 5 produtos comparados)
B19: Produtos | C19: Preço médio de mercado | D19: Preço praticado por você | E19: Diferença | F19: Comentário
B20: =IFERROR(IF(D20="","",IF(D20=D19,INDEX(OFFSET(AC!$D$11:$D$50,MATCH(D20,AC!$F$11:$F$50,0),0),MATCH(D20,OFFSET(AC!$F$11:$F$50,MATCH(D20,AC!$F$11:$F$50,0),0),0),1),INDEX(AC!$D$11:$D$50,MATCH(D20,AC!$F$11:$F$50,0),1))),"") -> Calça | C20: =IFERROR(VLOOKUP(B20,AC!$D$11:$E$50,2,0),"") -> 150 | D20: =IFERROR(LARGE(AC!$F$11:$F$50,1),"") -> 120 | E20: =IF(ISERROR( IF(B20="","",D20-C20)),"",IF(B20="","",D20-C20)) -> -30 | F20: =IF(ISERROR( IF(E20<0,"Seu preço está "&-I20*100&" % mais barato. Vale aumentar?",IF(E20>0,"Seu preço está "&I20*100&"% mais caro. Diminuir preço?","Seu preço está igual ao de mercado. Manter o preço?"))),"",IF(E20<0,"Seu preço está "&-I20*100&" % mais barato. Vale aumentar?",IF(E20>0,"Seu preço está "&I20*100&"% mais caro. Diminuir preço?","Seu preço está igual ao de mercado. Manter o preço?"))) -> Seu preço está 20 % mais barato. Vale aumentar? | I20: =IFERROR(ROUND(D20/C20-1,2),"") -> -0.2
B21: =IFERROR(IF(D21="","",IF(D21=D20,INDEX(OFFSET(AC!$D$11:$D$50,MATCH(D21,AC!$F$11:$F$50,0),0),MATCH(D21,OFFSET(AC!$F$11:$F$50,MATCH(D21,AC!$F$11:$F$50,0),0),0),1),INDEX(AC!$D$11:$D$50,MATCH(D21,AC!$F$11:$F$50,0),1))),"") -> Camisa | C21: =IFERROR(VLOOKUP(B21,AC!$D$11:$E$50,2,0),"") -> 110 | D21: =IFERROR(LARGE(AC!$F$11:$F$50,2),"") -> 100 | E21: =IF(ISERROR( IF(B21="","",D21-C21)),"",IF(B21="","",D21-C21)) -> -10 | F21: =IF(ISERROR( IF(E21<0,"Seu preço está "&-I21*100&" % mais barato. Vale aumentar?",IF(E21>0,"Seu preço está "&I21*100&"% mais caro. Diminuir preço?","Seu preço está igual ao de mercado. Manter o preço?"))),"",IF(E21<0,"Seu preço está "&-I21*100&" % mais barato. Vale aumentar?",IF(E21>0,"Seu preço está "&I21*100&"% mais caro. Diminuir preço?","Seu preço está igual ao de mercado. Manter o preço?"))) -> Seu preço está 9 % mais barato. Vale aumentar? | I21: =IFERROR(ROUND(D21/C21-1,2),"") -> -0.09
B22: =IFERROR(IF(D22="","",IF(D22=D21,INDEX(OFFSET(AC!$D$11:$D$50,MATCH(D22,AC!$F$11:$F$50,0),0),MATCH(D22,OFFSET(AC!$F$11:$F$50,MATCH(D22,AC!$F$11:$F$50,0),0),0),1),INDEX(AC!$D$11:$D$50,MATCH(D22,AC!$F$11:$F$50,0),1))),"") ->  | C22: =IFERROR(VLOOKUP(B22,AC!$D$11:$E$50,2,0),"") ->  | D22: =IFERROR(LARGE(AC!$F$11:$F$50,3),"") ->  | E22: =IF(ISERROR( IF(B22="","",D22-C22)),"",IF(B22="","",D22-C22)) -> 
B23: =IFERROR(IF(D23="","",IF(D23=D22,INDEX(OFFSET(AC!$D$11:$D$50,MATCH(D23,AC!$F$11:$F$50,0),0),MATCH(D23,OFFSET(AC!$F$11:$F$50,MATCH(D23,AC!$F$11:$F$50,0),0),0),1),INDEX(AC!$D$11:$D$50,MATCH(D23,AC!$F$11:$F$50,0),1))),"") ->  | C23: =IFERROR(VLOOKUP(B23,AC!$D$11:$E$50,2,0),"") ->  | D23: =IFERROR(LARGE(AC!$F$11:$F$50,4),"") ->  | E23: =IF(ISERROR( IF(B23="","",D23-C23)),"",IF(B23="","",D23-C23)) -> 
B24: =IFERROR(IF(D24="","",IF(D24=D23,INDEX(OFFSET(AC!$D$11:$D$50,MATCH(D24,AC!$F$11:$F$50,0),0),MATCH(D24,OFFSET(AC!$F$11:$F$50,MATCH(D24,AC!$F$11:$F$50,0),0),0),1),INDEX(AC!$D$11:$D$50,MATCH(D24,AC!$F$11:$F$50,0),1))),"") ->  | C24: =IFERROR(VLOOKUP(B24,AC!$D$11:$E$50,2,0),"") ->  | D24: =IFERROR(LARGE(AC!$F$11:$F$50,5),"") ->  | E24: =IF(ISERROR( IF(B24="","",D24-C24)),"",IF(B24="","",D24-C24)) -> 
B26: Top 10 Mix de Produtos - Receita Gerada
B27: Produtos | D27: Quantidade a ser vendida | E27: Receita gerada
B28: =IFERROR(IF(E28="","",IF(E28=E27,INDEX(OFFSET(Cad!$B$12:$B$511,MATCH(E28,Cad!$U$12:$U$511,0),0),MATCH(E28,OFFSET(Cad!$U$12:$U$511,MATCH(E28,Cad!$U$12:$U$511,0),0),0),1),INDEX(Cad!$B$12:$B$511,MATCH(E28,Cad!$U$12:$U$511,0),1))),"") -> Camiseta | D28: =IFERROR(IF(E28="","",IF(E28=E27,INDEX(OFFSET(Cad!$V$12:$V$511,MATCH(E28,Cad!$U$12:$U$511,0),0),MATCH(E28,OFFSET(Cad!$U$12:$U$511,MATCH(E28,Cad!$U$12:$U$511,0),0),0),1),INDEX(Cad!$V$12:$V$511,MATCH(E28,Cad!$U$12:$U$511,0),1))),"") -> 220.3815089 | E28: =IFERROR(IF(LARGE(Cad!$U$12:$U$511,F28)=0,"",LARGE(Cad!$U$12:$U$511,F28)),"") -> 15426.70562 | F28: 1
B29: =IFERROR(IF(E29="","",IF(E29=E28,INDEX(OFFSET(Cad!$B$12:$B$511,MATCH(E29,Cad!$U$12:$U$511,0),0),MATCH(E29,OFFSET(Cad!$U$12:$U$511,MATCH(E29,Cad!$U$12:$U$511,0),0),0),1),INDEX(Cad!$B$12:$B$511,MATCH(E29,Cad!$U$12:$U$511,0),1))),"") -> Calça | D29: =IFERROR(IF(E29="","",IF(E29=E28,INDEX(OFFSET(Cad!$V$12:$V$511,MATCH(E29,Cad!$U$12:$U$511,0),0),MATCH(E29,OFFSET(Cad!$U$12:$U$511,MATCH(E29,Cad!$U$12:$U$511,0),0),0),1),INDEX(Cad!$V$12:$V$511,MATCH(E29,Cad!$U$12:$U$511,0),1))),"") -> 75.55937446 | E29: =IFERROR(IF(LARGE(Cad!$U$12:$U$511,F29)=0,"",LARGE(Cad!$U$12:$U$511,F29)),"") -> 9067.124936 | F29: 2
B30: =IFERROR(IF(E30="","",IF(E30=E29,INDEX(OFFSET(Cad!$B$12:$B$511,MATCH(E30,Cad!$U$12:$U$511,0),0),MATCH(E30,OFFSET(Cad!$U$12:$U$511,MATCH(E30,Cad!$U$12:$U$511,0),0),0),1),INDEX(Cad!$B$12:$B$511,MATCH(E30,Cad!$U$12:$U$511,0),1))),"") -> Camisa | D30: =IFERROR(IF(E30="","",IF(E30=E29,INDEX(OFFSET(Cad!$V$12:$V$511,MATCH(E30,Cad!$U$12:$U$511,0),0),MATCH(E30,OFFSET(Cad!$U$12:$U$511,MATCH(E30,Cad!$U$12:$U$511,0),0),0),1),INDEX(Cad!$V$12:$V$511,MATCH(E30,Cad!$U$12:$U$511,0),1))),"") -> 78.70768173 | E30: =IFERROR(IF(LARGE(Cad!$U$12:$U$511,F30)=0,"",LARGE(Cad!$U$12:$U$511,F30)),"") -> 7870.768173 | F30: 3
B31: =IFERROR(IF(E31="","",IF(E31=E30,INDEX(OFFSET(Cad!$B$12:$B$511,MATCH(E31,Cad!$U$12:$U$511,0),0),MATCH(E31,OFFSET(Cad!$U$12:$U$511,MATCH(E31,Cad!$U$12:$U$511,0),0),0),1),INDEX(Cad!$B$12:$B$511,MATCH(E31,Cad!$U$12:$U$511,0),1))),"") -> Pijamas | D31: =IFERROR(IF(E31="","",IF(E31=E30,INDEX(OFFSET(Cad!$V$12:$V$511,MATCH(E31,Cad!$U$12:$U$511,0),0),MATCH(E31,OFFSET(Cad!$U$12:$U$511,MATCH(E31,Cad!$U$12:$U$511,0),0),0),1),INDEX(Cad!$V$12:$V$511,MATCH(E31,Cad!$U$12:$U$511,0),1))),"") -> 23.61230452 | E31: =IFERROR(IF(LARGE(Cad!$U$12:$U$511,F31)=0,"",LARGE(Cad!$U$12:$U$511,F31)),"") -> 1180.615226 | F31: 4
B32: =IFERROR(IF(E32="","",IF(E32=E31,INDEX(OFFSET(Cad!$B$12:$B$511,MATCH(E32,Cad!$U$12:$U$511,0),0),MATCH(E32,OFFSET(Cad!$U$12:$U$511,MATCH(E32,Cad!$U$12:$U$511,0),0),0),1),INDEX(Cad!$B$12:$B$511,MATCH(E32,Cad!$U$12:$U$511,0),1))),"") ->  | D32: =IFERROR(IF(E32="","",IF(E32=E31,INDEX(OFFSET(Cad!$V$12:$V$511,MATCH(E32,Cad!$U$12:$U$511,0),0),MATCH(E32,OFFSET(Cad!$U$12:$U$511,MATCH(E32,Cad!$U$12:$U$511,0),0),0),1),INDEX(Cad!$V$12:$V$511,MATCH(E32,Cad!$U$12:$U$511,0),1))),"") ->  | E32: =IFERROR(IF(LARGE(Cad!$U$12:$U$511,F32)=0,"",LARGE(Cad!$U$12:$U$511,F32)),"") ->  | F32: 5
B33: =IFERROR(IF(E33="","",IF(E33=E32,INDEX(OFFSET(Cad!$B$12:$B$511,MATCH(E33,Cad!$U$12:$U$511,0),0),MATCH(E33,OFFSET(Cad!$U$12:$U$511,MATCH(E33,Cad!$U$12:$U$511,0),0),0),1),INDEX(Cad!$B$12:$B$511,MATCH(E33,Cad!$U$12:$U$511,0),1))),"") ->  | D33: =IFERROR(IF(E33="","",IF(E33=E32,INDEX(OFFSET(Cad!$V$12:$V$511,MATCH(E33,Cad!$U$12:$U$511,0),0),MATCH(E33,OFFSET(Cad!$U$12:$U$511,MATCH(E33,Cad!$U$12:$U$511,0),0),0),1),INDEX(Cad!$V$12:$V$511,MATCH(E33,Cad!$U$12:$U$511,0),1))),"") ->  | E33: =IFERROR(IF(LARGE(Cad!$U$12:$U$511,F33)=0,"",LARGE(Cad!$U$12:$U$511,F33)),"") ->  | F33: 6
B34: =IFERROR(IF(E34="","",IF(E34=E33,INDEX(OFFSET(Cad!$B$12:$B$511,MATCH(E34,Cad!$U$12:$U$511,0),0),MATCH(E34,OFFSET(Cad!$U$12:$U$511,MATCH(E34,Cad!$U$12:$U$511,0),0),0),1),INDEX(Cad!$B$12:$B$511,MATCH(E34,Cad!$U$12:$U$511,0),1))),"") ->  | D34: =IFERROR(IF(E34="","",IF(E34=E33,INDEX(OFFSET(Cad!$V$12:$V$511,MATCH(E34,Cad!$U$12:$U$511,0),0),MATCH(E34,OFFSET(Cad!$U$12:$U$511,MATCH(E34,Cad!$U$12:$U$511,0),0),0),1),INDEX(Cad!$V$12:$V$511,MATCH(E34,Cad!$U$12:$U$511,0),1))),"") ->  | E34: =IFERROR(IF(LARGE(Cad!$U$12:$U$511,F34)=0,"",LARGE(Cad!$U$12:$U$511,F34)),"") ->  | F34: 7
B35: =IFERROR(IF(E35="","",IF(E35=E34,INDEX(OFFSET(Cad!$B$12:$B$511,MATCH(E35,Cad!$U$12:$U$511,0),0),MATCH(E35,OFFSET(Cad!$U$12:$U$511,MATCH(E35,Cad!$U$12:$U$511,0),0),0),1),INDEX(Cad!$B$12:$B$511,MATCH(E35,Cad!$U$12:$U$511,0),1))),"") ->  | D35: =IFERROR(IF(E35="","",IF(E35=E34,INDEX(OFFSET(Cad!$V$12:$V$511,MATCH(E35,Cad!$U$12:$U$511,0),0),MATCH(E35,OFFSET(Cad!$U$12:$U$511,MATCH(E35,Cad!$U$12:$U$511,0),0),0),1),INDEX(Cad!$V$12:$V$511,MATCH(E35,Cad!$U$12:$U$511,0),1))),"") ->  | E35: =IFERROR(IF(LARGE(Cad!$U$12:$U$511,F35)=0,"",LARGE(Cad!$U$12:$U$511,F35)),"") ->  | F35: 8
B36: =IFERROR(IF(E36="","",IF(E36=E35,INDEX(OFFSET(Cad!$B$12:$B$511,MATCH(E36,Cad!$U$12:$U$511,0),0),MATCH(E36,OFFSET(Cad!$U$12:$U$511,MATCH(E36,Cad!$U$12:$U$511,0),0),0),1),INDEX(Cad!$B$12:$B$511,MATCH(E36,Cad!$U$12:$U$511,0),1))),"") ->  | D36: =IFERROR(IF(E36="","",IF(E36=E35,INDEX(OFFSET(Cad!$V$12:$V$511,MATCH(E36,Cad!$U$12:$U$511,0),0),MATCH(E36,OFFSET(Cad!$U$12:$U$511,MATCH(E36,Cad!$U$12:$U$511,0),0),0),1),INDEX(Cad!$V$12:$V$511,MATCH(E36,Cad!$U$12:$U$511,0),1))),"") ->  | E36: =IFERROR(IF(LARGE(Cad!$U$12:$U$511,F36)=0,"",LARGE(Cad!$U$12:$U$511,F36)),"") ->  | F36: 9
B37: =IFERROR(IF(E37="","",IF(E37=E36,INDEX(OFFSET(Cad!$B$12:$B$511,MATCH(E37,Cad!$U$12:$U$511,0),0),MATCH(E37,OFFSET(Cad!$U$12:$U$511,MATCH(E37,Cad!$U$12:$U$511,0),0),0),1),INDEX(Cad!$B$12:$B$511,MATCH(E37,Cad!$U$12:$U$511,0),1))),"") ->  | D37: =IFERROR(IF(E37="","",IF(E37=E36,INDEX(OFFSET(Cad!$V$12:$V$511,MATCH(E37,Cad!$U$12:$U$511,0),0),MATCH(E37,OFFSET(Cad!$U$12:$U$511,MATCH(E37,Cad!$U$12:$U$511,0),0),0),1),INDEX(Cad!$V$12:$V$511,MATCH(E37,Cad!$U$12:$U$511,0),1))),"") ->  | E37: =IFERROR(IF(LARGE(Cad!$U$12:$U$511,F37)=0,"",LARGE(Cad!$U$12:$U$511,F37)),"") ->  | F37: 10

Sheet GR
B10: Top 10 Mix de Produtos - Receita Gerada necessária para "Ponto de Equilíbrio"
G13: ="O produto que mais gerou receita para atingir o ponto de equilíbrio foi: "&" "&'RC'!B28 -> O produto que mais gerou receita para atingir o ponto de equilíbrio foi: Camiseta
B24: Top 10 Mix de Produtos - Quantidade
G27: ="O produto que tem mais participação no ponto de equilíbrio é "&GR_Dados!A3&"."&" "&" A quantidade vendida de "&GR_Dados!A3&" é de "&GR_Dados!E3&" unidades." -> O produto que tem mais participação no ponto de equilíbrio é Camiseta. A quantidade vendida de Camiseta é de 220 unidades.
B39: Top 10 Margem de Contribuição
G42: ="O produto que tem o maior índice de margem de contribuição é "&GR_Dados!A16&"."&" "&" O IMC de "&GR_Dados!A16&" é de "&GR_Dados!C16*100&" %." -> O produto que tem o maior índice de margem de contribuição é Camiseta. O IMC de Camiseta é de 65 %.
B55: Top 10 Custos Fixos | N55: Custos Fixos: | O55: Lucro: | P55: custos maior que lucro | Q55: custo menor que lucro
N56: =PE!F12 -> 16030 | O56: =SUM(Cad!E12:E511)-'RC'!D15-'RC'!I16 -> 9159.4 | P56: A soma dos seus custos diretos e custos fixos fazem com que eles sejam maiores que seu lucro. Significa que o lucro obtido não paga seus custos com o volume de vendas que foi estipulado. Dica: Faça uma revisão na operação do seu negócio com o intuito de reduzir todos os seus custos para se tornar mais competitivo sem deixar de obter lucro. | Q56: Parabéns! Seu lucro é maior que os seus custos fixos. Mantenha esse processo para não deixar que seus custos ultrapassem o seu lucro.
G57: =IF(N56>O56,P56,Q56) -> A soma dos seus custos diretos e custos fixos fazem com que eles sejam maiores que seu lucro. Significa que o lucro obtido não paga seus custos com o volume de vendas que foi estipulado. Dica: Faça uma revisão na operação do seu negócio com o intuito de reduzir todos os seus custos para se tornar mais competitivo sem deixar de obter lucro.
B71: Custos Diretos
G74: ="Os custos diretos são aqueles que variam de acordo com o volume de vendas. Sua média de custos diretos é de R$ "&GR_Dados!C48&" e o seu custo mais elevado está "&GR_Dados!D48*100&"% acima da média."&" "&"Dica: É muito comum esquecer de alguns itens dessa parte de custos diretos. Por isso, faça uma avaliação mais criteriosa para entender quais são os itens que ainda podem estar sendo esquecidos." -> Os custos diretos são aqueles que variam de acordo com o volume de vendas. Sua média de custos diretos é de R$ 27,65 e o seu custo mais elevado está 157% acima da média. Dica: É muito comum esquecer de alguns itens dessa parte de custos diretos. Por isso, faça uma avaliação mais criteriosa para entender quais são os itens que ainda podem estar sendo esquecidos.
B87: Análise dos Concorrentes
G90: ="Você tem "&GR_Dados!C52&" concorrentes analisados e seu preço médio está inferior à média de mercado. Isso pode ser um bom sinal, mas não é algo para se animar muito."&" "&"Dica:"&" "&"Existem muitas formas de se diferenciar em um negócio. Fatores como qualidade, posicionamento, localização geográfica (e outros fatores) são tão importantes quanto o preço. Faça uma avaliação para saber se o preço é a única diferenciação que você precisa." -> Você tem 6 concorrentes analisados e seu preço médio está inferior à média de mercado. Isso pode ser um bom sinal, mas não é algo para se animar muito. Dica: Existem muitas formas de se diferenciar em um negócio. Fatores como qualidade, posicionamento, localização geográfica (e outros fatores) são tão importantes quanto o preço. Faça uma avaliação para saber se o preço é a única diferenciação que você precisa.

Sheet RI
B11: Empresa: | C11: =Menu!G26 -> Sebrae | H11: =CONCATENATE("data da impressão: ",TEXT(TODAY(),"DD/MM/AAAA")) -> data da impressão: 31/03/2023
B13: 1. Margem de Contribuição
B32: 2. Resultados Consolidados
B62: 3. Gráficos

Sheet Instruções
B11: 1. Cadastros Gerais
B34: 2. Ponto de Equilíbrio
B58: 3. Análise da Concorrência
B79: 4. Resultados Consolidados
B105: 5. Gráficos
B146: 6. Relatório de Impressão

Sheet GR_Dados
A1: Top 10 Mix de Produtos - quantidade
A2: Produtos | C2: Quantidade a ser vendida
A3: =IFERROR(IF(C3="","",IF(C3=C2,INDEX(OFFSET(Cad!$B$12:$B$511,MATCH(C3,Cad!$V$12:$V$511,0),0),MATCH(C3,OFFSET(Cad!$V$12:$V$511,MATCH(C3,Cad!$V$12:$V$511,0),0),0),1),INDEX(Cad!$B$12:$B$511,MATCH(C3,Cad!$V$12:$V$511,0),1))),"") -> Camiseta | C3: =IFERROR(IF(LARGE(Cad!$V$12:$V$511,D3)=0,"",LARGE(Cad!$V$12:$V$511,D3)),"") -> 220.3815089 | D3: 1 | E3: =IF(C3="","",ROUND(C3,0)) -> 220
A4: =IFERROR(IF(C4="","",IF(C4=C3,INDEX(OFFSET(Cad!$B$12:$B$511,MATCH(C4,Cad!$V$12:$V$511,0),0),MATCH(C4,OFFSET(Cad!$V$12:$V$511,MATCH(C4,Cad!$V$12:$V$511,0),0),0),1),INDEX(Cad!$B$12:$B$511,MATCH(C4,Cad!$V$12:$V$511,0),1))),"") -> Camisa | C4: =IFERROR(IF(LARGE(Cad!$V$12:$V$511,D4)=0,"",LARGE(Cad!$V$12:$V$511,D4)),"") -> 78.70768173 | D4: 2 | E4: =IF(C4="","",ROUND(C4,0)) -> 79
A5: =IFERROR(IF(C5="","",IF(C5=C4,INDEX(OFFSET(Cad!$B$12:$B$511,MATCH(C5,Cad!$V$12:$V$511,0),0),MATCH(C5,OFFSET(Cad!$V$12:$V$511,MATCH(C5,Cad!$V$12:$V$511,0),0),0),1),INDEX(Cad!$B$12:$B$511,MATCH(C5,Cad!$V$12:$V$511,0),1))),"") -> Calça | C5: =IFERROR(IF(LARGE(Cad!$V$12:$V$511,D5)=0,"",LARGE(Cad!$V$12:$V$511,D5)),"") -> 75.55937446 | D5: 3 | E5: 76
A6: =IFERROR(IF(C6="","",IF(C6=C5,INDEX(OFFSET(Cad!$B$12:$B$511,MATCH(C6,Cad!$V$12:$V$511,0),0),MATCH(C6,OFFSET(Cad!$V$12:$V$511,MATCH(C6,Cad!$V$12:$V$511,0),0),0),1),INDEX(Cad!$B$12:$B$511,MATCH(C6,Cad!$V$12:$V$511,0),1))),"") -> Pijamas | C6: =IFERROR(IF(LARGE(Cad!$V$12:$V$511,D6)=0,"",LARGE(Cad!$V$12:$V$511,D6)),"") -> 23.61230452 | D6: 4 | E6: 24
A7: =IFERROR(IF(C7="","",IF(C7=C6,INDEX(OFFSET(Cad!$B$12:$B$511,MATCH(C7,Cad!$V$12:$V$511,0),0),MATCH(C7,OFFSET(Cad!$V$12:$V$511,MATCH(C7,Cad!$V$12:$V$511,0),0),0),1),INDEX(Cad!$B$12:$B$511,MATCH(C7,Cad!$V$12:$V$511,0),1))),"") ->  | C7: =IFERROR(IF(LARGE(Cad!$V$12:$V$511,D7)=0,"",LARGE(Cad!$V$12:$V$511,D7)),"") ->  | D7: 5
A8: =IFERROR(IF(C8="","",IF(C8=C7,INDEX(OFFSET(Cad!$B$12:$B$511,MATCH(C8,Cad!$V$12:$V$511,0),0),MATCH(C8,OFFSET(Cad!$V$12:$V$511,MATCH(C8,Cad!$V$12:$V$511,0),0),0),1),INDEX(Cad!$B$12:$B$511,MATCH(C8,Cad!$V$12:$V$511,0),1))),"") ->  | C8: =IFERROR(IF(LARGE(Cad!$V$12:$V$511,D8)=0,"",LARGE(Cad!$V$12:$V$511,D8)),"") ->  | D8: 6
A9: =IFERROR(IF(C9="","",IF(C9=C8,INDEX(OFFSET(Cad!$B$12:$B$511,MATCH(C9,Cad!$V$12:$V$511,0),0),MATCH(C9,OFFSET(Cad!$V$12:$V$511,MATCH(C9,Cad!$V$12:$V$511,0),0),0),1),INDEX(Cad!$B$12:$B$511,MATCH(C9,Cad!$V$12:$V$511,0),1))),"") ->  | C9: =IFERROR(IF(LARGE(Cad!$V$12:$V$511,D9)=0,"",LARGE(Cad!$V$12:$V$511,D9)),"") ->  | D9: 7
A10: =IFERROR(IF(C10="","",IF(C10=C9,INDEX(OFFSET(Cad!$B$12:$B$511,MATCH(C10,Cad!$V$12:$V$511,0),0),MATCH(C10,OFFSET(Cad!$V$12:$V$511,MATCH(C10,Cad!$V$12:$V$511,0),0),0),1),INDEX(Cad!$B$12:$B$511,MATCH(C10,Cad!$V$12:$V$511,0),1))),"") ->  | C10: =IFERROR(IF(LARGE(Cad!$V$12:$V$511,D10)=0,"",LARGE(Cad!$V$12:$V$511,D10)),"") ->  | D10: 8
A11: =IFERROR(IF(C11="","",IF(C11=C10,INDEX(OFFSET(Cad!$B$12:$B$511,MATCH(C11,Cad!$V$12:$V$511,0),0),MATCH(C11,OFFSET(Cad!$V$12:$V$511,MATCH(C11,Cad!$V$12:$V$511,0),0),0),1),INDEX(Cad!$B$12:$B$511,MATCH(C11,Cad!$V$12:$V$511,0),1))),"") ->  | C11: =IFERROR(IF(LARGE(Cad!$V$12:$V$511,D11)=0,"",LARGE(Cad!$V$12:$V$511,D11)),"") ->  | D11: 9
A12: =IFERROR(IF(C12="","",IF(C12=C11,INDEX(OFFSET(Cad!$B$12:$B$511,MATCH(C12,Cad!$V$12:$V$511,0),0),MATCH(C12,OFFSET(Cad!$V$12:$V$511,MATCH(C12,Cad!$V$12:$V$511,0),0),0),1),INDEX(Cad!$B$12:$B$511,MATCH(C12,Cad!$V$12:$V$511,0),1))),"") ->  | C12: =IFERROR(IF(LARGE(Cad!$V$12:$V$511,D12)=0,"",LARGE(Cad!$V$12:$V$511,D12)),"") ->  | D12: 10
A15: Produtos | C15: Margem de Contribuição
A16: =IFERROR(IF(C16="","",IF(C16=C15,INDEX(OFFSET(Cad!$B$12:$B$511,MATCH(C16,Cad!$T$12:$T$511,0),0),MATCH(C16,OFFSET(Cad!$T$12:$T$511,MATCH(C16,Cad!$T$12:$T$511,0),0),0),1),INDEX(Cad!$B$12:$B$511,MATCH(C16,Cad!$T$12:$T$511,0),1))),"") -> Camiseta | C16: =IFERROR(IF(LARGE(Cad!$T$12:$T$511,D16)=0,"",LARGE(Cad!$T$12:$T$511,D16)),"") -> 0.65 | D16: 1
A17: =IFERROR(IF(C17="","",IF(C17=C16,INDEX(OFFSET(Cad!$B$12:$B$511,MATCH(C17,Cad!$T$12:$T$511,0),0),MATCH(C17,OFFSET(Cad!$T$12:$T$511,MATCH(C17,Cad!$T$12:$T$511,0),0),0),1),INDEX(Cad!$B$12:$B$511,MATCH(C17,Cad!$T$12:$T$511,0),1))),"") -> Camisa | C17: =IFERROR(IF(LARGE(Cad!$T$12:$T$511,D17)=0,"",LARGE(Cad!$T$12:$T$511,D17)),"") -> 0.6 | D17: 2
A18: =IFERROR(IF(C18="","",IF(C18=C17,INDEX(OFFSET(Cad!$B$12:$B$511,MATCH(C18,Cad!$T$12:$T$511,0),0),MATCH(C18,OFFSET(Cad!$T$12:$T$511,MATCH(C18,Cad!$T$12:$T$511,0),0),0),1),INDEX(Cad!$B$12:$B$511,MATCH(C18,Cad!$T$12:$T$511,0),1))),"") -> Calça | C18: =IFERROR(IF(LARGE(Cad!$T$12:$T$511,D18)=0,"",LARGE(Cad!$T$12:$T$511,D18)),"") -> 0.4666666667 | D18: 3
A19: =IFERROR(IF(C19="","",IF(C19=C18,INDEX(OFFSET(Cad!$B$12:$B$511,MATCH(C19,Cad!$T$12:$T$511,0),0),MATCH(C19,OFFSET(Cad!$T$12:$T$511,MATCH(C19,Cad!$T$12:$T$511,0),0),0),1),INDEX(Cad!$B$12:$B$511,MATCH(C19,Cad!$T$12:$T$511,0),1))),"") -> Pijamas | C19: =IFERROR(IF(LARGE(Cad!$T$12:$T$511,D19)=0,"",LARGE(Cad!$T$12:$T$511,D19)),"") -> 0.35 | D19: 4
A20: =IFERROR(IF(C20="","",IF(C20=C19,INDEX(OFFSET(Cad!$B$12:$B$511,MATCH(C20,Cad!$T$12:$T$511,0),0),MATCH(C20,OFFSET(Cad!$T$12:$T$511,MATCH(C20,Cad!$T$12:$T$511,0),0),0),1),INDEX(Cad!$B$12:$B$511,MATCH(C20,Cad!$T$12:$T$511,0),1))),"") ->  | C20: =IFERROR(IF(LARGE(Cad!$T$12:$T$511,D20)=0,"",LARGE(Cad!$T$12:$T$511,D20)),"") ->  | D20: 5
A21: =IFERROR(IF(C21="","",IF(C21=C20,INDEX(OFFSET(Cad!$B$12:$B$511,MATCH(C21,Cad!$T$12:$T$511,0),0),MATCH(C21,OFFSET(Cad!$T$12:$T$511,MATCH(C21,Cad!$T$12:$T$511,0),0),0),1),INDEX(Cad!$B$12:$B$511,MATCH(C21,Cad!$T$12:$T$511,0),1))),"") ->  | C21: =IFERROR(IF(LARGE(Cad!$T$12:$T$511,D21)=0,"",LARGE(Cad!$T$12:$T$511,D21)),"") ->  | D21: 6
A22: =IFERROR(IF(C22="","",IF(C22=C21,INDEX(OFFSET(Cad!$B$12:$B$511,MATCH(C22,Cad!$T$12:$T$511,0),0),MATCH(C22,OFFSET(Cad!$T$12:$T$511,MATCH(C22,Cad!$T$12:$T$511,0),0),0),1),INDEX(Cad!$B$12:$B$511,MATCH(C22,Cad!$T$12:$T$511,0),1))),"") ->  | C22: =IFERROR(IF(LARGE(Cad!$T$12:$T$511,D22)=0,"",LARGE(Cad!$T$12:$T$511,D22)),"") ->  | D22: 7
A23: =IFERROR(IF(C23="","",IF(C23=C22,INDEX(OFFSET(Cad!$B$12:$B$511,MATCH(C23,Cad!$T$12:$T$511,0),0),MATCH(C23,OFFSET(Cad!$T$12:$T$511,MATCH(C23,Cad!$T$12:$T$511,0),0),0),1),INDEX(Cad!$B$12:$B$511,MATCH(C23,Cad!$T$12:$T$511,0),1))),"") ->  | C23: =IFERROR(IF(LARGE(Cad!$T$12:$T$511,D23)=0,"",LARGE(Cad!$T$12:$T$511,D23)),"") ->  | D23: 8
A24: =IFERROR(IF(C24="","",IF(C24=C23,INDEX(OFFSET(Cad!$B$12:$B$511,MATCH(C24,Cad!$T$12:$T$511,0),0),MATCH(C24,OFFSET(Cad!$T$12:$T$511,MATCH(C24,Cad!$T$12:$T$511,0),0),0),1),INDEX(Cad!$B$12:$B$511,MATCH(C24,Cad!$T$12:$T$511,0),1))),"") ->  | C24: =IFERROR(IF(LARGE(Cad!$T$12:$T$511,D24)=0,"",LARGE(Cad!$T$12:$T$511,D24)),"") ->  | D24: 9
A25: =IFERROR(IF(C25="","",IF(C25=C24,INDEX(OFFSET(Cad!$B$12:$B$511,MATCH(C25,Cad!$T$12:$T$511,0),0),MATCH(C25,OFFSET(Cad!$T$12:$T$511,MATCH(C25,Cad!$T$12:$T$511,0),0),0),1),INDEX(Cad!$B$12:$B$511,MATCH(C25,Cad!$T$12:$T$511,0),1))),"") ->  | C25: =IFERROR(IF(LARGE(Cad!$T$12:$T$511,D25)=0,"",LARGE(Cad!$T$12:$T$511,D25)),"") ->  | D25: 10
A29: Custos fixos | C29: Valor
A30: =IFERROR(IF(C30="","",IF(C30=C29,INDEX(OFFSET(Cad!$M$12:$M$51,MATCH(C30,Cad!$N$12:$N$51,0),0),MATCH(C30,OFFSET(Cad!$N$12:$N$51,MATCH(C30,Cad!$N$12:$N$51,0),0),0),1),INDEX(Cad!$M$12:$M$51,MATCH(C30,Cad!$N$12:$N$51,0),1))),"") -> Pró Labore e salários | C30: =IFERROR(IF(LARGE(Cad!$N$12:$N$51,D30)=0,"",LARGE(Cad!$N$12:$N$51,D30)),"") -> 6500 | D30: 1
A31: =IFERROR(IF(C31="","",IF(C31=C30,INDEX(OFFSET(Cad!$M$12:$M$51,MATCH(C31,Cad!$N$12:$N$51,0),0),MATCH(C31,OFFSET(Cad!$N$12:$N$51,MATCH(C31,Cad!$N$12:$N$51,0),0),0),1),INDEX(Cad!$M$12:$M$51,MATCH(C31,Cad!$N$12:$N$51,0),1))),"") -> Aluguel | C31: =IFERROR(IF(LARGE(Cad!$N$12:$N$51,D31)=0,"",LARGE(Cad!$N$12:$N$51,D31)),"") -> 2000 | D31: 2
A32: =IFERROR(IF(C32="","",IF(C32=C31,INDEX(OFFSET(Cad!$M$12:$M$51,MATCH(C32,Cad!$N$12:$N$51,0),0),MATCH(C32,OFFSET(Cad!$N$12:$N$51,MATCH(C32,Cad!$N$12:$N$51,0),0),0),1),INDEX(Cad!$M$12:$M$51,MATCH(C32,Cad!$N$12:$N$51,0),1))),"") -> Marketing | C32: =IFERROR(IF(LARGE(Cad!$N$12:$N$51,D32)=0,"",LARGE(Cad!$N$12:$N$51,D32)),"") -> 2000 | D32: 3
A33: =IFERROR(IF(C33="","",IF(C33=C32,INDEX(OFFSET(Cad!$M$12:$M$51,MATCH(C33,Cad!$N$12:$N$51,0),0),MATCH(C33,OFFSET(Cad!$N$12:$N$51,MATCH(C33,Cad!$N$12:$N$51,0),0),0),1),INDEX(Cad!$M$12:$M$51,MATCH(C33,Cad!$N$12:$N$51,0),1))),"") -> Outros Custos | C33: =IFERROR(IF(LARGE(Cad!$N$12:$N$51,D33)=0,"",LARGE(Cad!$N$12:$N$51,D33)),"") -> 1900 | D33: 4
A34: =IFERROR(IF(C34="","",IF(C34=C33,INDEX(OFFSET(Cad!$M$12:$M$51,MATCH(C34,Cad!$N$12:$N$51,0),0),MATCH(C34,OFFSET(Cad!$N$12:$N$51,MATCH(C34,Cad!$N$12:$N$51,0),0),0),1),INDEX(Cad!$M$12:$M$51,MATCH(C34,Cad!$N$12:$N$51,0),1))),"") -> Empréstimos | C34: =IFERROR(IF(LARGE(Cad!$N$12:$N$51,D34)=0,"",LARGE(Cad!$N$12:$N$51,D34)),"") -> 1350 | D34: 5
A35: =IFERROR(IF(C35="","",IF(C35=C34,INDEX(OFFSET(Cad!$M$12:$M$51,MATCH(C35,Cad!$N$12:$N$51,0),0),MATCH(C35,OFFSET(Cad!$N$12:$N$51,MATCH(C35,Cad!$N$12:$N$51,0),0),0),1),INDEX(Cad!$M$12:$M$51,MATCH(C35,Cad!$N$12:$N$51,0),1))),"") -> Legais e Jurídicos | C35: =IFERROR(IF(LARGE(Cad!$N$12:$N$51,D35)=0,"",LARGE(Cad!$N$12:$N$51,D35)),"") -> 980 | D35: 6
A36: =IFERROR(IF(C36="","",IF(C36=C35,INDEX(OFFSET(Cad!$M$12:$M$51,MATCH(C36,Cad!$N$12:$N$51,0),0),MATCH(C36,OFFSET(Cad!$N$12:$N$51,MATCH(C36,Cad!$N$12:$N$51,0),0),0),1),INDEX(Cad!$M$12:$M$51,MATCH(C36,Cad!$N$12:$N$51,0),1))),"") -> Telefone e internet | C36: =IFERROR(IF(LARGE(Cad!$N$12:$N$51,D36)=0,"",LARGE(Cad!$N$12:$N$51,D36)),"") -> 700 | D36: 7
A37: =IFERROR(IF(C37="","",IF(C37=C36,INDEX(OFFSET(Cad!$M$12:$M$51,MATCH(C37,Cad!$N$12:$N$51,0),0),MATCH(C37,OFFSET(Cad!$N$12:$N$51,MATCH(C37,Cad!$N$12:$N$51,0),0),0),1),INDEX(Cad!$M$12:$M$51,MATCH(C37,Cad!$N$12:$N$51,0),1))),"") -> Taxa de propriedade (águal e luz) | C37: =IFERROR(IF(LARGE(Cad!$N$12:$N$51,D37)=0,"",LARGE(Cad!$N$12:$N$51,D37)),"") -> 600 | D37: 8
A38: =IFERROR(IF(C38="","",IF(C38=C37,INDEX(OFFSET(Cad!$M$12:$M$51,MATCH(C38,Cad!$N$12:$N$51,0),0),MATCH(C38,OFFSET(Cad!$N$12:$N$51,MATCH(C38,Cad!$N$12:$N$51,0),0),0),1),INDEX(Cad!$M$12:$M$51,MATCH(C38,Cad!$N$12:$N$51,0),1))),"") ->  | C38: =IFERROR(IF(LARGE(Cad!$N$12:$N$51,D38)=0,"",LARGE(Cad!$N$12:$N$51,D38)),"") ->  | D38: 9
A39: =IFERROR(IF(C39="","",IF(C39=C38,INDEX(OFFSET(Cad!$M$12:$M$51,MATCH(C39,Cad!$N$12:$N$51,0),0),MATCH(C39,OFFSET(Cad!$N$12:$N$51,MATCH(C39,Cad!$N$12:$N$51,0),0),0),1),INDEX(Cad!$M$12:$M$51,MATCH(C39,Cad!$N$12:$N$51,0),1))),"") ->  | C39: =IFERROR(IF(LARGE(Cad!$N$12:$N$51,D39)=0,"",LARGE(Cad!$N$12:$N$51,D39)),"") ->  | D39: 10
A43: Custos diretos | C43: Valor
A44: =IFERROR(IF(C44="","",IF(C44=C43,INDEX(OFFSET('RC'!$B$11:$B$14,MATCH(C44,'RC'!$D$11:$D$14,0),0),MATCH(C44,OFFSET('RC'!$D$11:$D$14,MATCH(C44,'RC'!$D$11:$D$14,0),0),0),1),INDEX('RC'!$B$11:$B$14,MATCH(C44,'RC'!$D$11:$D$14,0),1))),"") -> Matéria - prima | C44: =IFERROR(IF(LARGE('RC'!$D$11:$D$14,D30)=0,"",LARGE('RC'!$D$11:$D$14,D30)),"") -> 71 | D44: 1
A45: =IFERROR(IF(C45="","",IF(C45=C44,INDEX(OFFSET('RC'!$B$11:$B$14,MATCH(C45,'RC'!$D$11:$D$14,0),0),MATCH(C45,OFFSET('RC'!$D$11:$D$14,MATCH(C45,'RC'!$D$11:$D$14,0),0),0),1),INDEX('RC'!$B$11:$B$14,MATCH(C45,'RC'!$D$11:$D$14,0),1))),"") -> Outros gastos | C45: =IFERROR(IF(LARGE('RC'!$D$11:$D$14,D31)=0,"",LARGE('RC'!$D$11:$D$14,D31)),"") -> 39 | D45: 2
A46: =IFERROR(IF(C46="","",IF(C46=C45,INDEX(OFFSET('RC'!$B$11:$B$14,MATCH(C46,'RC'!$D$11:$D$14,0),0),MATCH(C46,OFFSET('RC'!$D$11:$D$14,MATCH(C46,'RC'!$D$11:$D$14,0),0),0),1),INDEX('RC'!$B$11:$B$14,MATCH(C46,'RC'!$D$11:$D$14,0),1))),"") -> Impostos | C46: =IFERROR(IF(LARGE('RC'!$D$11:$D$14,D32)=0,"",LARGE('RC'!$D$11:$D$14,D32)),"") -> 0.48 | D46: 3
A47: =IFERROR(IF(C47="","",IF(C47=C46,INDEX(OFFSET('RC'!$B$11:$B$14,MATCH(C47,'RC'!$D$11:$D$14,0),0),MATCH(C47,OFFSET('RC'!$D$11:$D$14,MATCH(C47,'RC'!$D$11:$D$14,0),0),0),1),INDEX('RC'!$B$11:$B$14,MATCH(C47,'RC'!$D$11:$D$14,0),1))),"") -> Comissões | C47: =IFERROR(IF(LARGE('RC'!$D$11:$D$14,D33)=0,"",LARGE('RC'!$D$11:$D$14,D33)),"") -> 0.12 | D47: 4
C48: =AVERAGE(C44:C47) -> 27.65 | D48: =ROUND(C44/C48-1,2) -> 1.57
A52: Qtd de concorrentes | C52: =COUNTA(AC!$B$11:$B$60) -> 6
